fUSD/lending_fUSD_20250106
["ID","MTS","AMOUNT","RATE_DAILY","PERIOD"]
[347907845,1736193033175,-1000.0,9.57e-05,2]
[347907847,1736193033184,-500.0,9.594e-05,2]
[347907849,1736193033193,-500.0,9.594e-05,2]
[347907851,1736193033203,-854.57,9.594e-05,2]
[347907853,1736193033212,-1241.16,9.594e-05,2]
[347907855,1736193033221,-272.91,9.594e-05,2]
[347907857,1736193033230,-520.21928307,9.594e-05,2]
[347907859,1736193033239,-938.5,9.594e-05,2]
[347907861,1736193033249,-456.25099872,9.594e-05,2]
[347908256,1736193038177,-500.0,8.772e-05,2]
[347908257,1736193038189,-500.0,9.046e-05,2]
[347908258,1736193038200,-500.0,9.32e-05,2]
[347908259,1736193038212,-43.74900128,9.594e-05,2]
[347908260,1736193038223,-94.75109872,9.594e-05,2]
[347908261,1736193038236,-405.24890128,9.594e-05,2]
[347908262,1736193038247,-500.0,9.594e-05,2]
[347908263,1736193038258,-500.0,9.594e-05,2]
[347908264,1736193038268,-1114.6308,9.595e-05,2]
[347908265,1736193038278,-425.83,9.611e-05,2]
[347908266,1736193038287,-237.288,9.655e-05,2]
[347908267,1736193038298,-4242.683,9.658e-05,2]
[347908268,1736193038308,-500.0,9.669e-05,2]
[347908269,1736193038319,-500.0,9.669e-05,2]
[347908270,1736193038331,-293.67817875,9.669e-05,2]
[347908271,1736193038344,-500.0,9.669e-05,2]
[347908272,1736193038355,-500.0,9.669e-05,2]
[347908273,1736193038365,-500.0,9.669e-05,2]
[347908274,1736193038375,-1079.63,9.67e-05,2]
[347908275,1736193038384,-534.0,9.694e-05,2]
[347908276,1736193038395,-500.0,9.694e-05,2]
[347908277,1736193038404,-222.08976323,9.694e-05,2]
[347908278,1736193038415,-500.0,9.694e-05,2]
[347908279,1736193038427,-500.0,9.694e-05,2]
[347908280,1736193038438,-500.0,9.694e-05,2]
[347908281,1736193038448,-500.0,9.694e-05,2]
[347908282,1736193038461,-1166.18,9.694e-05,2]
[347908283,1736193038471,-500.0,9.694e-05,2]
[347908284,1736193038482,-500.0,9.694e-05,2]
[347908285,1736193038492,-500.0,9.694e-05,2]
[347908286,1736193038503,-500.0,9.695e-05,2]
[347908287,1736193038514,-860.04,9.695e-05,2]
[347908288,1736193038526,-1000.0,9.789e-05,2]
[347908289,1736193038538,-719.23,9.799e-05,2]
[347908290,1736193038549,-500.0,9.799e-05,2]
[347908291,1736193038560,-500.0,9.799e-05,2]
[347908292,1736193038570,-598.63,9.799e-05,2]
[347908293,1736193038581,-831.79,9.799e-05,2]
[347908294,1736193038591,-436.97,9.836e-05,2]
[347908295,1736193038601,-1958.64,9.836e-05,2]
[347908296,1736193038612,-420.92,9.836e-05,2]
[347908297,1736193038623,-300.0,9.836e-05,2]
[347908298,1736193038633,-500.0,9.868e-05,2]
[347908299,1736193038643,-500.0,9.868e-05,2]
[347908300,1736193038654,-854.57,9.868e-05,2]
[347908301,1736193038664,-1241.16,9.868e-05,2]
[347908302,1736193038674,-938.5,9.868e-05,2]
[347908304,1736193038684,-500.0,9.868e-05,2]
[347908307,1736193038695,-500.0,9.868e-05,2]
[347908309,1736193038705,-500.0,9.868e-05,2]
[347908310,1736193038716,-433.77,9.882e-05,2]
[347908311,1736193038726,-14515.015,9.9e-05,2]
[347908312,1736193038736,-5000.0,9.9e-05,2]
[347908313,1736193038747,-941.86846757,9.934e-05,2]
[347908314,1736193038757,-500.0,9.943e-05,2]
[347908315,1736193038767,-285.56317893,9.943e-05,2]
[347908316,1736193038779,-534.0,9.968e-05,2]
[347908317,1736193038789,-500.0,9.968e-05,2]
[347908318,1736193038799,-500.0,9.968e-05,2]
[347908319,1736193038810,-500.0,9.968e-05,2]
[347908320,1736193038820,-500.0,9.968e-05,2]
[347908321,1736193038830,-500.0,9.968e-05,2]
[347908322,1736193038840,-1132.11689249,9.968e-05,2]
[347908323,1736193038903,-34.06310751,9.968e-05,2]
[347908324,1736193038914,-500.0,9.968e-05,2]
[347908325,1736193038925,-500.0,9.968e-05,2]
[347908326,1736193038935,-563.99,9.968e-05,2]
[347908327,1736193038945,-639.19840141,9.969e-05,2]
[347908328,1736193038955,-860.04,9.969e-05,2]
[347908329,1736193038969,-500.0,9.999e-05,2]
[347908330,1736193038981,-654.96,9.999e-05,2]
[347908331,1736193038991,-500.0,9.999e-05,2]
[347908332,1736193039001,-500.0,9.999e-05,2]
[347908333,1736193039011,-826.92,9.999e-05,2]
[347908334,1736193039022,-150.44505,9.999e-05,2]
[347908335,1736193039032,-500.0,9.999e-05,2]
[347908336,1736193039042,-500.0,9.999e-05,2]
[347908337,1736193039051,-153.41519,9.999e-05,2]
[347908338,1736193039061,-1093.29,9.999e-05,2]
[347908339,1736193039072,-500.0,9.999e-05,2]
[347908340,1736193039082,-500.0,9.999e-05,2]
[347908341,1736193039092,-100.45013784,9.999e-05,2]
[347908342,1736193039104,-236.57029058,9.999e-05,2]
[347908343,1736193039114,-500.0,9.999e-05,2]
[347908344,1736193039124,-500.0,9.999e-05,2]
[347908345,1736193039134,-500.0,9.999e-05,2]
[347908346,1736193039144,-500.0,9.999e-05,2]
[347908347,1736193039154,-687.86,9.999e-05,2]
[347908348,1736193039164,-206.79916882,9.999e-05,2]
[347908349,1736193039174,-461.41156212,9.999e-05,2]
[347908350,1736193039184,-500.24,9.999e-05,2]
[347908351,1736193039194,-500.0,9.999e-05,2]
[347908352,1736193039204,-500.0,9.999e-05,2]
[347908353,1736193039214,-1158.71,9.999e-05,2]
[347908354,1736193039224,-500.0,9.999e-05,2]
[347908355,1736193039234,-144.36056453,9.999e-05,2]
[347908356,1736193039252,-439.77943547,9.999e-05,2]
[347908357,1736193039263,-2606.42,9.999e-05,2]
[347908358,1736193039272,-1008.68,9.999e-05,2]
[347908359,1736193039282,-500.0,9.999e-05,2]
[347908360,1736193039292,-691.44,9.999e-05,2]
[347908361,1736193039303,-500.0,9.999e-05,2]
[347908362,1736193039313,-500.0,9.999e-05,2]
[347908363,1736193039323,-795.85,9.999e-05,2]
[347908364,1736193039333,-500.0,9.999e-05,2]
[347908365,1736193039343,-955.29,9.999e-05,2]
[347908366,1736193039353,-500.0,9.999e-05,2]
[347908367,1736193039363,-677.75,9.999e-05,2]
[347908368,1736193039373,-465.08715209,9.999e-05,2]
[347908420,1736193040755,-500.0,9.868e-05,2]
[347908421,1736193040764,-34.91284791,9.999e-05,2]
[347908423,1736193040773,-500.0,9.999e-05,2]
[347908425,1736193040782,-580.57,9.999e-05,2]
[347908426,1736193040791,-146.73033513,9.999e-05,2]
[347908427,1736193040805,-353.26966487,9.999e-05,2]
[347908428,1736193040814,-500.0,9.999e-05,2]
[347908429,1736193040823,-1500.50200687,9.999e-05,2]
[347908431,1736193040833,-263.22799313,9.999e-05,2]
[347908433,1736193040842,-108.81858134,9.999e-05,2]
[347908435,1736193040852,-332.54659203,9.999e-05,2]
[347908437,1736193040863,-708.10482663,9.999e-05,2]
[347908439,1736193040873,-500.0,9.999e-05,2]
[347908441,1736193040884,-1090.76,9.999e-05,2]
[347908444,1736193040894,-500.0,9.999e-05,2]
[347908446,1736193040904,-500.0,9.999e-05,2]
[347908448,1736193040913,-500.0,9.999e-05,2]
[347908450,1736193040922,-500.0,9.999e-05,2]
[347908452,1736193040931,-1168.93,9.999e-05,2]
[347908454,1736193040940,-2050.71,9.999e-05,2]
[347908456,1736193040949,-481.49517337,9.999e-05,2]
[347908474,1736193043337,-127.48482663,9.999e-05,2]
[347908475,1736193043347,-55301.49680656,0.0001,2]
[347908476,1736193043394,-1169.0,0.0001,2]
[347908477,1736193043409,-12700.67655452,0.0001,2]
[347908478,1736193043420,-528.24836708,0.0001,2]
[347908479,1736193043454,-607.80989142,0.0001,2]
[347908480,1736193043515,-2208.4000004,0.0001,2]
[347908481,1736193043575,-2959.3577632,0.0001,2]
[347908482,1736193046254,-500.0,9.799e-05,2]
[347908483,1736193046263,-2935.31176896,0.0001,2]
[347908484,1736193046312,-839.6199934,0.0001,2]
[347908485,1736193046323,-74340.93651095,0.0001,2]
[347908486,1736193046334,-1869.04913574,0.0001,2]
[347908487,1736193046367,-105503.71919813,0.0001,2]
[347908488,1736193046425,-953.0,0.0001,2]
[347908489,1736193046600,-2285.60119097,0.0001,2]
[347908490,1736193046613,-44935.35076136,0.0001,2]
[347908590,1736193536635,-240.0,0.0002,120]
[347908591,1736193536661,-994.73016099,0.0002,120]
[347908592,1736193536689,-506.77909508,0.0002,120]
[347908642,1736194006145,-1279.25,8.219e-05,2]
[347908643,1736194006166,-175.37,8.978e-05,2]
[347908644,1736194006189,-300.0,8.999e-05,2]
[347908645,1736194006210,-150.0,9e-05,2]
[347908646,1736194006232,-287.04254267,9e-05,2]
[347908647,1736194006254,-150.0,9e-05,2]
[347908648,1736194006276,-1689.94954567,9e-05,2]
[347908665,1736194231524,-333.53,9.016e-05,2]
[347908666,1736194231534,-250.0,9.031e-05,2]
[347908667,1736194231543,-557.99,9.053e-05,2]
[347908668,1736194231552,-250.0,9.087e-05,2]
[347908669,1736194231562,-300.0,9.09e-05,2]
[347908670,1736194231571,-250.0,9.091e-05,2]
[347908671,1736194231580,-1000.0,9.097e-05,2]
[347908672,1736194231589,-717.164,9.5e-05,2]
[347908673,1736194231598,-189.83,9.667e-05,2]
[347908674,1736194231607,-3604.085,9.668e-05,2]
[347908675,1736194231616,-305.15,9.67e-05,2]
[347908676,1736194231626,-500.0,9.694e-05,2]
[347908677,1736194231635,-500.0,9.694e-05,2]
[347908678,1736194231644,-500.0,9.694e-05,2]
[347908679,1736194231653,-645.03,9.694e-05,2]
[347908680,1736194231663,-500.0,9.694e-05,2]
[347908681,1736194231672,-500.0,9.799e-05,2]
[347908682,1736194231684,-928.3078,9.899e-05,2]
[347908683,1736194231694,-278.198,9.9e-05,2]
[347908684,1736194231703,-5000.0,9.9e-05,2]
[347908685,1736194231712,-1728.70303675,9.9e-05,2]
[347908686,1736194231748,-1112.7209996,9.9e-05,2]
[347908687,1736194231759,-52713.57596365,9.9e-05,2]
[347908688,1736194231768,-910.47285199,9.941e-05,2]
[347908689,1736194231777,-500.0,9.968e-05,2]
[347908690,1736194231786,-500.0,9.968e-05,2]
[347908691,1736194231795,-500.0,9.968e-05,2]
[347908692,1736194231805,-645.03,9.968e-05,2]
[347908693,1736194231814,-500.0,9.968e-05,2]
[347908694,1736194231823,-1067.04,9.999e-05,2]
[347908695,1736194231832,-545.04,9.999e-05,2]
[347908696,1736194231841,-500.0,9.999e-05,2]
[347908697,1736194231850,-500.0,9.999e-05,2]
[347908698,1736194231859,-500.0,9.999e-05,2]
[347908699,1736194231868,-500.0,9.999e-05,2]
[347908700,1736194231877,-500.0,9.999e-05,2]
[347908701,1736194231887,-643.21993218,9.999e-05,2]
[347908702,1736194231896,-239.98866874,9.999e-05,2]
[347908704,1736194231905,-500.0,9.999e-05,2]
[347908706,1736194231914,-916.43466484,9.999e-05,2]
[347908709,1736194231943,-173.39533516,9.999e-05,2]
[347908710,1736194231952,-500.0,9.999e-05,2]
[347908711,1736194231961,-710.09,9.999e-05,2]
[347908712,1736194231970,-500.0,9.999e-05,2]
[347908713,1736194231979,-500.0,9.999e-05,2]
[347908714,1736194231988,-573.69,9.999e-05,2]
[347908715,1736194231997,-500.0,9.999e-05,2]
[347908716,1736194232007,-447.62466484,9.999e-05,2]
[347908717,1736194232024,-211.57533516,9.999e-05,2]
[347908718,1736194232034,-500.0,9.999e-05,2]
[347908719,1736194232043,-797.14,9.999e-05,2]
[347908720,1736194232052,-813.29,9.999e-05,2]
[347908721,1736194232061,-500.0,9.999e-05,2]
[347908722,1736194232070,-500.0,9.999e-05,2]
[347908723,1736194232079,-500.0,9.999e-05,2]
[347908724,1736194232088,-500.0,9.999e-05,2]
[347908725,1736194232097,-2497.82,9.999e-05,2]
[347908726,1736194232107,-500.0,9.999e-05,2]
[347908727,1736194232116,-1068.57,9.999e-05,2]
[347908728,1736194232125,-1131.27,9.999e-05,2]
[347908729,1736194232135,-500.0,9.999e-05,2]
[347908730,1736194232144,-500.0,9.999e-05,2]
[347908731,1736194232153,-783.53,9.999e-05,2]
[347908732,1736194232162,-1122.41,9.999e-05,2]
[347908733,1736194232171,-500.0,9.999e-05,2]
[347908734,1736194232180,-197.97,9.999e-05,2]
[347908735,1736194232190,-500.0,9.999e-05,2]
[347908736,1736194232199,-627.67,9.999e-05,2]
[347908737,1736194232208,-500.0,9.999e-05,2]
[347908738,1736194232217,-500.0,9.999e-05,2]
[347908739,1736194232227,-559.8,9.999e-05,2]
[347908740,1736194232236,-1640.73,9.999e-05,2]
[347908741,1736194232245,-662.63,9.999e-05,2]
[347908742,1736194232254,-500.0,9.999e-05,2]
[347908743,1736194232264,-500.0,9.999e-05,2]
[347908744,1736194232273,-500.0,9.999e-05,2]
[347908745,1736194232283,-500.0,9.999e-05,2]
[347908746,1736194232293,-500.0,9.999e-05,2]
[347908747,1736194232302,-966.65,9.999e-05,2]
[347908748,1736194232311,-649.51,9.999e-05,2]
[347908749,1736194232320,-500.0,9.999e-05,2]
[347908750,1736194232329,-500.0,9.999e-05,2]
[347908751,1736194232338,-500.0,9.999e-05,2]
[347908752,1736194232348,-1141.05,9.999e-05,2]
[347908753,1736194232358,-500.0,9.999e-05,2]
[347908754,1736194232368,-727.151076,9.999e-05,2]
[347908755,1736194232377,-1072.8,9.999e-05,2]
[347908756,1736194232387,-676.54,9.999e-05,2]
[347908757,1736194232396,-500.0,9.999e-05,2]
[347908758,1736194232405,-500.0,9.999e-05,2]
[347908759,1736194232414,-500.0,9.999e-05,2]
[347908760,1736194232424,-500.0,9.999e-05,2]
[347908761,1736194232433,-500.0,9.999e-05,2]
[347908762,1736194232443,-664.79916,9.999e-05,2]
[347908763,1736194232452,-500.0,9.999e-05,2]
[347908764,1736194232461,-982.59,9.999e-05,2]
[347908765,1736194232471,-500.0,9.999e-05,2]
[347908766,1736194232481,-500.0,9.999e-05,2]
[347908767,1736194232490,-500.0,9.999e-05,2]
[347908768,1736194232499,-1986.1,9.999e-05,2]
[347908769,1736194232508,-742.98,9.999e-05,2]
[347908770,1736194232518,-556.38,9.999e-05,2]
[347908771,1736194232528,-500.0,9.999e-05,2]
[347908772,1736194232537,-449.24144614,9.999e-05,2]
[347908773,1736194232547,-380.74060403,9.999e-05,2]
[347908774,1736194232556,-411.39158693,9.999e-05,2]
[347908775,1736194232565,-83774.85001549,0.0001,2]
[347908778,1736194237605,-500.0,9.999e-05,2]
[347908779,1736194237614,-681.07,9.999e-05,2]
[347908780,1736194237623,-648.35,9.999e-05,2]
[347908781,1736194237632,-18270.58,0.0001,2]
[347908935,1736194239438,-12000.54717333,0.0001,2]
[347908948,1736194239545,-336.06776832,0.0001,2]
[347908960,1736194239652,-2302.42204229,0.0001,2]
[347908963,1736194239663,-2256.96589732,0.0001,2]
[347908968,1736194239705,-2358835.56393514,0.0001,2]
[347908970,1736194239714,-3117.89697067,0.0001,2]
[347908972,1736194239723,-1687.37422237,0.0001,2]
[347908974,1736194239732,-500.24417805,0.0001,2]
[347908976,1736194239742,-251839.16303734,0.0001,2]
[347908978,1736194239751,-1356206.28205659,0.0001,2]
[347908980,1736194239761,-422.25836631,0.0001,2]
[347908983,1736194239781,-526.27679994,0.0001,2]
[347908985,1736194239792,-7089.2,0.0001,2]
[347908987,1736194239803,-36147.6469424,0.0001,2]
[347909208,1736194242520,-362.76313903,9.999e-05,2]
[347909209,1736194242578,-137.23686097,9.999e-05,2]
[347909210,1736194242587,-295518.73797111,0.0001,2]
[347909211,1736194242599,-2040.4,0.0001,2]
[347909212,1736194242671,-8497.93794956,0.0001,2]
[347909269,1736194246261,-13486917.885067,0.0001,2]
[347909271,1736194246270,-49288.0,0.0001,2]
[347909273,1736194246280,-1000.0,0.0001,2]
[347909276,1736194246289,-1117066.04308105,0.0001,2]
[347909278,1736194246299,-3793882.85286007,0.0001,2]
[347909279,1736194246308,-31268.7863076,0.0001,2]
[347909282,1736194246317,-151.0,0.0001,2]
[347909283,1736194246327,-151.0,0.0001,2]
[347909286,1736194246336,-223.96,0.0001,2]
[347909287,1736194246346,-151.0,0.0001,2]
[347909289,1736194246356,-217.02518422,0.0001,2]
[347909291,1736194246365,-150.76259698,0.0001,2]
[347909293,1736194246375,-96536.3903545,0.0001,2]
[347909295,1736194246384,-189.016899,0.0001,2]
[347909297,1736194246393,-349.55613445,0.0001,2]
[347909299,1736194246403,-3000.0,0.0001,2]
[347909301,1736194246412,-18165.28103298,0.0001,2]
[347909303,1736194246421,-995.56,0.0001,2]
[347909305,1736194246430,-48310.05045433,0.0001,2]
[347909307,1736194246439,-910.47285199,0.0001,2]
[347909309,1736194246448,-910.47285199,0.0001,2]
[347909311,1736194246457,-910.47285199,0.0001,2]
[347909313,1736194246467,-910.47285199,0.0001,2]
[347909315,1736194246475,-910.47285199,0.0001,2]
[347909317,1736194246485,-910.47285199,0.0001,2]
[347909319,1736194246494,-910.47285199,0.0001,2]
[347909321,1736194246503,-169.38,0.00010043,2]
[347909323,1736194246512,-500.0,0.00010073,2]
[347909325,1736194246521,-910.47285199,0.00010076,2]
[347909327,1736194246530,-410.97,0.00010137,2]
[347909329,1736194246539,-163.45,0.00010137,2]
[347909331,1736194246549,-151.09,0.00010137,2]
[347909333,1736194246558,-333.53,0.00010143,2]
[347909335,1736194246567,-30000.0,0.0001017,2]
[347909337,1736194246576,-1000.0,0.000102,2]
[347909339,1736194246585,-460.0,0.000102,2]
[347909341,1736194246594,-730.0,0.000102,2]
[347909343,1736194246604,-910.47285199,0.0001021,2]
[347909345,1736194246613,-1000.0,0.00010234,2]
[347909347,1736194246623,-500.0,0.00010242,2]
[347909349,1736194246632,-500.0,0.00010242,2]
[347909351,1736194246641,-500.0,0.00010242,2]
[347909353,1736194246650,-645.03,0.00010242,2]
[347909355,1736194246659,-500.0,0.00010242,2]
[347909357,1736194246668,-1067.04,0.00010273,2]
[347909359,1736194246677,-545.04,0.00010273,2]
[347909361,1736194246686,-500.0,0.00010273,2]
[347909363,1736194246695,-500.0,0.00010273,2]
[347909365,1736194246704,-500.0,0.00010273,2]
[347909367,1736194246713,-1089.83,0.00010273,2]
[347909369,1736194246725,-500.0,0.00010273,2]
[347909371,1736194246734,-710.09,0.00010273,2]
[347909373,1736194246743,-500.0,0.00010273,2]
[347909375,1736194246752,-500.0,0.00010273,2]
[347909377,1736194246761,-573.69,0.00010273,2]
[347909379,1736194246771,-500.0,0.00010273,2]
[347909381,1736194246780,-659.2,0.00010273,2]
[347909383,1736194246789,-500.0,0.00010273,2]
[347909385,1736194246798,-797.14,0.00010273,2]
[347909387,1736194246807,-813.29,0.00010273,2]
[347909389,1736194246819,-500.0,0.00010273,2]
[347909391,1736194246828,-500.0,0.00010273,2]
[347909393,1736194246837,-500.0,0.00010273,2]
[347909395,1736194246846,-500.0,0.00010273,2]
[347909397,1736194246855,-2497.82,0.00010273,2]
[347909399,1736194246864,-500.0,0.00010273,2]
[347909401,1736194246873,-1131.27,0.00010273,2]
[347909403,1736194246883,-500.0,0.00010273,2]
[347909405,1736194246892,-783.53,0.00010273,2]
[347909407,1736194246903,-500.0,0.00010273,2]
[347909409,1736194246912,-1122.41,0.00010273,2]
[347909411,1736194246922,-500.0,0.00010273,2]
[347909413,1736194246932,-627.67,0.00010273,2]
[347909415,1736194246941,-500.0,0.00010273,2]
[347909417,1736194246950,-500.0,0.00010273,2]
[347909419,1736194246959,-559.8,0.00010273,2]
[347909421,1736194246968,-1640.73,0.00010273,2]
[347909423,1736194246977,-662.63,0.00010273,2]
[347909425,1736194246986,-500.0,0.00010273,2]
[347909427,1736194246996,-500.0,0.00010273,2]
[347909429,1736194247005,-500.0,0.00010273,2]
[347909431,1736194247014,-500.0,0.00010273,2]
[347909433,1736194247023,-500.0,0.00010273,2]
[347909435,1736194247032,-966.65,0.00010273,2]
[347909437,1736194247041,-649.51,0.00010273,2]
[347909439,1736194247050,-541.11,0.00010273,2]
[347909441,1736194247059,-267.28057411,0.00010273,2]
[347909443,1736194247069,-500.0,0.00010273,2]
[347909445,1736194247079,-1141.05,0.00010273,2]
[347909447,1736194247088,-500.0,0.00010273,2]
[347909449,1736194247097,-727.151076,0.00010273,2]
[347909451,1736194247106,-1072.8,0.00010273,2]
[347909452,1736194247115,-500.0,0.00010273,2]
[347909454,1736194247124,-500.0,0.00010273,2]
[347909456,1736194247133,-500.0,0.00010273,2]
[347909458,1736194247142,-664.79916,0.00010273,2]
[347909460,1736194247153,-500.0,0.00010273,2]
[347909462,1736194247162,-982.59,0.00010273,2]
[347909464,1736194247171,-500.0,0.00010273,2]
[347909466,1736194247180,-500.0,0.00010273,2]
[347909468,1736194247189,-500.0,0.00010273,2]
[347909470,1736194247198,-1986.1,0.00010273,2]
[347909472,1736194247208,-556.38,0.00010273,2]
[347909474,1736194247217,-500.0,0.00010273,2]
[347909476,1736194247227,-681.07,0.00010273,2]
[347909478,1736194247235,-648.35,0.00010273,2]
[347909480,1736194247245,-500.0,0.00010273,2]
[347909482,1736194247254,-3894.0,0.00010337,2]
[347909484,1736194247263,-9617.0,0.00010337,2]
[347909486,1736194247272,-293.681,0.00010337,2]
[347909488,1736194247281,-1173.0,0.00010337,2]
[347909490,1736194247290,-1103.0,0.00010337,2]
[347909492,1736194247299,-910.47285199,0.00010345,2]
[347909494,1736194247308,-500.0,0.00010347,2]
[347909496,1736194247318,-1000.0,0.00010411,2]
[347909498,1736194247327,-1000.0,0.00010411,2]
[347909500,1736194247336,-1279.25,0.00010429,2]
[347909502,1736194247346,-910.47285199,0.00010479,2]
[347909504,1736194247356,-646.0,0.000105,2]
[347909506,1736194247365,-923.3316784,0.000105,2]
[347909508,1736194247374,-500.0,0.00010516,2]
[347909510,1736194247384,-500.0,0.00010516,2]
[347909512,1736194247393,-500.0,0.00010516,2]
[347909514,1736194247405,-645.03,0.00010516,2]
[347909516,1736194247414,-500.0,0.00010516,2]
[347909518,1736194247423,-1067.04,0.00010547,2]
[347909520,1736194247432,-545.04,0.00010547,2]
[347909522,1736194247441,-500.0,0.00010547,2]
[347909524,1736194247450,-500.0,0.00010547,2]
[347909526,1736194247460,-500.0,0.00010547,2]
[347909528,1736194247469,-1089.83,0.00010547,2]
[347909530,1736194247479,-500.0,0.00010547,2]
[347909532,1736194247488,-710.09,0.00010547,2]
[347909534,1736194247497,-500.0,0.00010547,2]
[347909536,1736194247507,-500.0,0.00010547,2]
[347909538,1736194247516,-573.69,0.00010547,2]
[347909540,1736194247525,-253.85,0.00010547,2]
[347909542,1736194247534,-659.2,0.00010547,2]
[347909544,1736194247544,-500.0,0.00010547,2]
[347909546,1736194247553,-797.14,0.00010547,2]
[347909548,1736194247562,-813.29,0.00010547,2]
[347909550,1736194247571,-500.0,0.00010547,2]
[347909552,1736194247580,-500.0,0.00010547,2]
[347909554,1736194247589,-500.0,0.00010547,2]
[347909556,1736194247598,-500.0,0.00010547,2]
[347909558,1736194247608,-2497.82,0.00010547,2]
[347909560,1736194247619,-500.0,0.00010547,2]
[347909562,1736194247628,-1131.27,0.00010547,2]
[347909564,1736194247637,-500.0,0.00010547,2]
[347909566,1736194247646,-783.53,0.00010547,2]
[347909568,1736194247661,-500.0,0.00010547,2]
[347909570,1736194247670,-1122.41,0.00010547,2]
[347909572,1736194247680,-500.0,0.00010547,2]
[347909574,1736194247689,-627.67,0.00010547,2]
[347909576,1736194247699,-500.0,0.00010547,2]
[347909578,1736194247708,-500.0,0.00010547,2]
[347909580,1736194247717,-559.8,0.00010547,2]
[347909582,1736194247727,-1712.07,0.00010547,2]
[347909584,1736194247736,-1640.73,0.00010547,2]
[347909586,1736194247745,-662.63,0.00010547,2]
[347909588,1736194247755,-500.0,0.00010547,2]
[347909590,1736194247765,-500.0,0.00010547,2]
[347909592,1736194247775,-500.0,0.00010547,2]
[347909594,1736194247784,-255.32974415,0.00010547,2]
[347909596,1736194247793,-500.0,0.00010547,2]
[347909598,1736194247801,-966.65,0.00010547,2]
[347909600,1736194247814,-649.51,0.00010547,2]
[347909602,1736194247823,-500.0,0.00010547,2]
[347909603,1736194247832,-500.0,0.00010547,2]
[347909604,1736194247841,-1141.05,0.00010547,2]
[347909605,1736194247851,-727.151076,0.00010547,2]
[347909606,1736194247859,-1072.8,0.00010547,2]
[347909608,1736194247869,-500.0,0.00010547,2]
[347909610,1736194247877,-500.0,0.00010547,2]
[347909613,1736194247888,-500.0,0.00010547,2]
[347909615,1736194247899,-664.79916,0.00010547,2]
[347909617,1736194247910,-500.0,0.00010547,2]
[347909618,1736194247919,-982.59,0.00010547,2]
[347909620,1736194247928,-500.0,0.00010547,2]
[347909622,1736194247937,-500.0,0.00010547,2]
[347909624,1736194247946,-500.0,0.00010547,2]
[347909626,1736194247955,-1986.1,0.00010547,2]
[347909628,1736194247965,-556.38,0.00010547,2]
[347909630,1736194247974,-500.0,0.00010547,2]
[347909632,1736194247985,-681.07,0.00010547,2]
[347909634,1736194248000,-648.35,0.00010547,2]
[347909636,1736194248015,-910.47285199,0.00010614,2]
[347909638,1736194248024,-214.11332,0.00010619,4]
[347909640,1736194248034,-500.0,0.00010621,2]
[347909642,1736194248044,-466.0,0.0001064,2]
[347909644,1736194248053,-285.0,0.0001064,2]
[347909646,1736194248062,-150.149,0.00010667,2]
[347909649,1736194248071,-150.503,0.00010667,2]
[347909651,1736194248081,-173.633,0.00010667,2]
[347909652,1736194248090,-151.0,0.00010667,2]
[347909654,1736194248099,-634.0,0.00010667,2]
[347909656,1736194248108,-566.0,0.00010667,2]
[347909658,1736194248117,-493.486,0.00010667,2]
[347909660,1736194248126,-404.331,0.00010667,2]
[347909662,1736194248135,-537.0,0.00010667,2]
[347909664,1736194248144,-3975.0,0.00010667,2]
[347909666,1736194248155,-425.83,0.00010679,2]
[347909668,1736194248165,-910.47285199,0.00010748,2]
[347909670,1736194248174,-156.577727,0.0001075,2]